[Event "57th Biel Festival ATO 2024"]
[Site "Biel"]
[Date "2024.07.24"]
[Round "8.15"]
[White "Gafner, Lancelot"]
[Black "Kim, Yejun"]
[Result "0-1"]
[ECO "B78"]
[WhiteElo "1864"]
[BlackElo "1642"]
[Annotator "NA RC"]
[PlyCount "74"]
[EventDate "2024.07.03"]
[EventType "swiss"]
[EventCountry "SUI"]
[SourceTitle "playchess.com"]
[Source "ChessBase"]
[SourceQuality "1"]
[TimeControl "40/5400+30:1800+30"]

1. e4 {[%emt 0:00:03]} c5 {[%emt 0:00:05]} 2. Nf3 {[%emt 0:00:16]} d6 {[%emt 0:00:04]} 3. d4 {[%emt 0:00:08]} cxd4 {[%emt 0:00:05]} 4. Nxd4 {[%emt 0:00:05]} Nf6 {[%emt 0:00:06]} 5. Nc3 {[%emt 0:00:05]} g6 {[%emt 0:00:13]} 6. Be3 {[%emt 0:00:18]} Bg7 {[%emt 0:00:08]} 7. f3 {[%emt 0:00:08]} O-O {[%emt 0:00:08]} 8. Qd2 {[%emt 0:00:06]} Nc6 {[%emt 0:00:07]} 9. Bc4 {[%emt 0:00:07]} Bd7 {[%emt 0:00:08]} 10. O-O-O {[%emt 0:00:15]} Rc8 {[%emt 0:00:11]} 11. Bb3 {[%emt 0:00:10]} Ne5 {[%emt 0:00:07]} 12. h4 {[%emt 0:01:07]} h5 {[%emt 0:00:16]} 13. g4 {[%emt 0:02:29]} hxg4 {[%emt 0:01:52]} 14. h5 {[%emt 0:01:31]} Nxh5 {[%emt 0:00:57]} 15. Bh6 {[%emt 0:02:10]} Rc5 {[%emt 0:01:26]} 16. Bxg7 {[%emt 0:06:33]} Kxg7 {[%emt 0:00:07]} 17. Rxh5 {[%emt 0:06:45]} gxh5 {[%emt 0:00:17]} 18. Qg5+ {[%emt 0:01:50]} Ng6 {[%emt 0:00:18]} 19. Nf5+ {[%emt 0:00:23]} Bxf5 {[%emt 0:00:54]} 20. exf5 {[%emt 0:00:18]} e6 {[%emt 0:11:55]} 21. Qxd8 {[%emt 0:13:14]} Rxd8 {[%emt 0:00:06]} 22. fxg6 {[%emt 0:00:03]} Kxg6 {[%emt 0:00:10]} 23. fxg4 {[%emt 0:02:54]} hxg4 {[%emt 0:00:05]} 24. Rg1 {[%emt 0:00:16]} Rg5 {[%emt 0:00:09]} 25. Ne4 {[%emt 0:00:21]} d5 {[%emt 0:00:06]} 26. Nxg5 {[%emt 0:00:40]} Kxg5 {[%emt 0:00:07]} 27. Kd2 {[%emt 0:00:30]} f5 {[%emt 0:00:21]} 28. c3 {[%emt 0:00:31]} e5 {[%emt 0:00:10]} 29. Bd1 {[%emt 0:00:39]} Rh8 {[%emt 0:00:07]} 30. Rg2 {[%emt 0:02:30]} Rh4 {[%emt 0:01:14]} 31. Ke1 {[%emt 0:01:41]} Rh1+ {[%emt 0:00:26]} 32. Kd2 {[%emt 0:00:05]} e4 {[%emt 0:01:19]} 33. Be2 {[%emt 0:00:30]} Rh4 {[%emt 0:00:31]} 34. Ke1 {[%emt 0:00:37]} f4 {[%emt 0:00:05]} 35. Bf1 {[%emt 0:00:43]} f3 {[%emt 0:00:09]} 36. Rg1 {[%emt 0:00:16]} Rh2 {[%emt 0:00:13]} 37. c4 {[%emt 0:00:15]} f2+ {[%emt 0:00:04]} 0-1

[Event "57th Biel Festival ATO 2024"]
[Site "Biel"]
[Date "2024.07.24"]
[Round "8.16"]
[White "Akhmediyar, Yernur"]
[Black "Jaggy, Enzo"]
[Result "1-0"]
[ECO "D10"]
[WhiteElo "1751"]
[BlackElo "1835"]
[Annotator "NA RC"]
[PlyCount "33"]
[EventDate "2024.07.03"]
[EventType "swiss"]
[EventCountry "SUI"]
[SourceTitle "playchess.com"]
[Source "ChessBase"]
[SourceQuality "1"]
[TimeControl "40/5400+30:1800+30"]

1. c4 {[%emt 0:01:42]} c6 {[%emt 0:00:04]} 2. d4 {[%emt 0:01:05]} d5 {[%emt 0:00:05]} 3. cxd5 {[%emt 0:01:47]} cxd5 {[%emt 0:00:16]} 4. Bf4 {[%emt 0:00:49]} Nf6 {[%emt 0:00:11]} 5. Nc3 {[%emt 0:01:24]} e6 {[%emt 0:00:34]} 6. e3 {[%emt 0:01:20]} a6 {[%emt 0:00:32]} 7. Bd3 {[%emt 0:02:52]} Bd6 {[%emt 0:06:54]} 8. Bg3 {[%emt 0:02:46]} O-O {[%emt 0:01:56]} 9. Nf3 {[%emt 0:02:02]} Bxg3 {[%emt 0:01:01]} 10. hxg3 {[%emt 0:00:22]} b5 {[%emt 0:00:49]} 11. Ne5 {[%emt 0:07:00]} Bb7 {[%emt 0:08:09]} 12. Bxh7+ {[%emt 0:09:00]} Kh8 {[%emt 0:03:13]} 13. Bg6+ {[%emt 0:00:17]} Kg8 {[%emt 0:00:08]} 14. Bxf7+ {[%emt 0:00:26]} Rxf7 {[%emt 0:00:12]} 15. Rh8+ {[%emt 0:00:13]} Kxh8 {[%emt 0:00:38]} 16. Nxf7+ {[%emt 0:00:11]} Kg8 {[%emt 0:00:05]} 17. Nxd8 {[%emt 0:00:08]} 1-0

[Event "57th Biel Festival ATO 2024"]
[Site "Biel"]
[Date "2024.07.24"]
[Round "8.17"]
[White "Jordan, Christina"]
[Black "Conrad, Vincent"]
[Result "0-1"]
[ECO "C10"]
[WhiteElo "1749"]
[BlackElo "1931"]
[Annotator "ChessBase"]
[PlyCount "128"]
[EventDate "2024.07.03"]
[EventType "swiss"]
[EventCountry "SUI"]
[SourceTitle "playchess.com"]
[Source "ChessBase"]
[SourceQuality "1"]
[TimeControl "40/5400+30:1800+30"]

1. e4 {[%emt 0:00:08]} e6 {[%emt 0:00:24]} 2. d4 {[%emt 0:00:04]} d5 {[%emt 0:00:16]} 3. Nc3 {[%emt 0:00:09]} Nc6 {[%emt 0:00:18]} 4. Bb5 {[%emt 0:10:04]} a6 {[%emt 0:01:32]} 5. Ba4 {[%emt 0:02:23]} b5 {[%emt 0:02:16]} 6. Bb3 {[%emt 0:00:04]} Nf6 {[%emt 0:05:17]} 7. Bg5 {[%emt 0:08:21]} Be7 {[%emt 0:00:24]} 8. exd5 {[%emt 0:24:00]} Nxd5 {[%emt 0:06:20]} 9. Bxd5 {[%emt 0:03:03]} exd5 {[%emt 0:00:30]} 10. Bxe7 {[%emt 0:00:14]} Nxe7 {[%emt 0:02:22]} 11. Nf3 {[%emt 0:01:14]} Bg4 {[%emt 0:00:58]} 12. Qd3 {[%emt 0:01:17]} f6 {[%emt 0:02:21]} 13. O-O {[%emt 0:02:29]} Qd7 {[%emt 0:01:29]} 14. h3 {[%emt 0:02:35]} Bf5 {[%emt 0:00:38]} 15. Qe2 {[%emt 0:02:42]} O-O {[%emt 0:08:26]} 16. Nh4 {[%emt 0:03:47]} Rfe8 {[%emt 0:00:52]} 17. Nxf5 {[%emt 0:06:49]} Nxf5 {[%emt 0:06:57]} 18. Qd2 {[%emt 0:04:02]} c6 {[%emt 0:04:06]} 19. Rfe1 {[%emt 0:03:19]} Kf7 {[%emt 0:06:08]} 20. a4 {[%emt 0:05:17]} b4 {[%emt 0:01:55]} 21. Ne2 {[%emt 0:00:07]} a5 {[%emt 0:00:22]} 22. Nf4 {[%emt 0:01:38]} Nd6 {[%emt 0:00:42]} 23. Nd3 {[%emt 0:02:14]} Ne4 {[%emt 0:02:19]} 24. Qf4 {[%emt 0:01:21]} Kg8 {[%emt 0:07:10]} 25. f3 {[%emt 0:02:41]} Ng5 {[%emt 0:14:34]} 26. Nc5 {[%emt 0:01:43]} Qf7 {[%emt 0:00:29]} 27. Qd6 {[%emt 0:01:41]} Qg6 {[%emt 0:03:20]} 28. Kh1 {[%emt 0:03:47]} Qh5 {[%emt 0:03:16]} 29. Kh2 {[%emt 0:02:33]} Qh4 {[%emt 0:06:04]} 30. Qg3 {[%emt 0:04:15]} Qxd4 {[%emt 0:04:57]} 31. Nb3 {[%emt 0:00:55]} Qa7 {[%emt 0:02:53]} 32. Qd6 {[%emt 0:00:47]} Qf2 {[%emt 0:00:00]} 33. Rxe8+ {[%emt 0:00:27]} Rxe8 {[%emt 0:00:13]} 34. Qf4 {[%emt 0:00:43]} Qxc2 {[%emt 0:02:13]} 35. Nd4 {[%emt 0:00:23]} Qxb2 {[%emt 0:02:40]} 36. Rg1 {[%emt 0:00:34]} Qc3 {[%emt 0:00:43]} 37. h4 {[%emt 0:00:30]} Ne6 {[%emt 0:01:37]} 38. Nxe6 {[%emt 0:00:26]} Rxe6 {[%emt 0:00:12]} 39. Qg4 {[%emt 0:00:18]} Qe5+ {[%emt 0:00:18]} 40. Kh1 {[%emt 0:00:30]} f5 {[%emt 0:00:17]} 41. Qg5 {[%emt 0:30:32]} Qf6 {[%emt 0:31:37]} 42. Qf4 {[%emt 0:00:00]} Re5 {[%emt 0:00:00]} 43. Rc1 {[%emt 0:00:00]} Qd6 {[%emt 0:00:00]} 44. Qd4 {[%emt 0:00:00]} Re2 {[%emt 0:00:00]} 45. Qd3 {[%emt 0:00:00]} Qe6 {[%emt 0:00:00]} 46. Qa6 {[%emt 0:00:00]} Re1+ {[%emt 0:00:00]} 47. Rxe1 {[%emt 0:00:00]} Qxe1+ {[%emt 0:00:00]} 48. Kh2 {[%emt 0:00:00]} Qxh4+ {[%emt 0:00:00]} 49. Kg1 {[%emt 0:00:00]} Qe1+ {[%emt 0:00:00]} 50. Kh2 {[%emt 0:00:00]} Qe5+ {[%emt 0:00:00]} 51. Kh1 {[%emt 0:00:00]} Qc7 {[%emt 0:00:00]} 52. Qe2 {[%emt 0:00:00]} Kf7 {[%emt 0:00:00]} 53. Qd3 {[%emt 0:00:00]} Qc8 {[%emt 0:00:00]} 54. Qd4 {[%emt 0:00:00]} Qb7 {[%emt 0:00:00]} 55. Qe5 {[%emt 0:00:00]} g6 {[%emt 0:00:00]} 56. Qh8 {[%emt 0:00:00]} Ke6 {[%emt 0:00:00]} 57. Qe8+ {[%emt 0:00:00]} Kd6 {[%emt 0:00:00]} 58. Qd8+ {[%emt 0:01:38]} Kc5 {[%emt 0:00:48]} 59. Qxa5+ {[%emt 0:01:55]} Kc4 {[%emt 0:00:17]} 60. Qd8 {[%emt 0:02:26]} b3 {[%emt 0:01:02]} 61. Qe8 {[%emt 0:00:36]} b2 {[%emt 0:03:31]} 62. Qe2+ {[%emt 0:00:09]} Kb3 {[%emt 0:00:42]} 63. Qd1+ {[%emt 0:00:41]} Ka2 {[%emt 0:00:23]} 64. Qe2 {[%emt 0:00:57]} Qb3 {[%emt 0:01:15]} 0-1

[Event "57th Biel Festival ATO 2024"]
[Site "Biel"]
[Date "2024.07.24"]
[Round "8.18"]
[White "Bangerter, Daria"]
[Black "Lachausse, Bruno"]
[Result "1-0"]
[ECO "B22"]
[WhiteElo "1931"]
[BlackElo "1787"]
[Annotator "RC"]
[PlyCount "67"]
[EventDate "2024.07.03"]
[EventType "swiss"]
[EventCountry "SUI"]
[SourceTitle "playchess.com"]
[Source "ChessBase"]
[SourceQuality "1"]
[TimeControl "40/5400+30:1800+30"]

1. e4 {[%emt 0:01:14]} c5 {[%emt 0:00:13]} 2. Nf3 {[%emt 0:00:04]} e6 {[%emt 0:00:08]} 3. c3 {[%emt 0:00:12]} d5 {[%emt 0:00:17]} 4. exd5 {[%emt 0:00:12]} Qxd5 {[%emt 0:00:21]} 5. d4 {[%emt 0:00:44]} Nf6 {[%emt 0:00:23]} 6. Be3 {[%emt 0:00:31]} cxd4 {[%emt 0:00:26]} 7. cxd4 {[%emt 0:00:33]} Nc6 {[%emt 0:00:54]} 8. Nc3 {[%emt 0:01:06]} Bb4 {[%emt 0:00:47]} 9. a3 {[%emt 0:04:51]} Bxc3+ {[%emt 0:02:07]} 10. bxc3 {[%emt 0:02:29]} O-O {[%emt 0:00:32]} 11. Be2 {[%emt 0:08:14]} b5 {[%emt 0:06:07]} 12. O-O {[%emt 0:04:07]} Bb7 {[%emt 0:01:12]} 13. Rb1 {[%emt 0:02:10]} a6 {[%emt 0:02:17]} 14. c4 {[%emt 0:08:09]} Qd6 {[%emt 0:07:57]} 15. cxb5 {[%emt 0:07:26]} axb5 {[%emt 0:07:35]} 16. Rxb5 {[%emt 0:01:57]} Ba6 {[%emt 0:01:05]} 17. Rb6 {[%emt 0:01:46]} Bxe2 {[%emt 0:00:32]} 18. Qxe2 {[%emt 0:00:09]} Nd5 {[%emt 0:01:56]} 19. Rb7 {[%emt 0:10:23]} Qxa3 {[%emt 0:02:13]} 20. Ng5 {[%emt 0:07:12]} h6 {[%emt 0:02:50]} 21. Ne4 {[%emt 0:06:33]} Qa4 {[%emt 0:03:31]} 22. Qg4 {[%emt 0:12:44]} Kh8 {[%emt 0:06:48]} 23. Nc5 {[%emt 0:03:03]} Nf6 {[%emt 0:13:21]} 24. Qh4 {[%emt 0:04:33]} Qc4 {[%emt 0:08:05]} 25. Bxh6 {[%emt 0:03:22]} Nh7 {[%emt 0:08:58]} 26. Be3 {[%emt 0:05:15]} e5 {[%emt 0:00:51]} 27. Rc1 {[%emt 0:02:46]} Qd5 {[%emt 0:03:12]} 28. Rd7 {[%emt 0:01:35]} Qa2 {[%emt 0:01:00]} 29. Ne4 {[%emt 0:00:59]} Kg8 {[%emt 0:00:39]} 30. Rxc6 {[%emt 0:00:35]} Qb2 {[%emt 0:02:48]} 31. Rdc7 {[%emt 0:00:30]} exd4 {[%emt 0:00:40]} 32. Bc1 {[%emt 0:00:26]} Qe2 {[%emt 0:00:32]} 33. h3 {[%emt 0:00:34]} f5 {[%emt 0:01:36]} 34. Qe7 {[%emt 0:00:30]} 1-0

[Event "57th Biel Festival ATO 2024"]
[Site "Biel"]
[Date "2024.07.24"]
[Round "8.19"]
[White "Retti, Marco"]
[Black "Voet, Dirk"]
[Result "1/2-1/2"]
[ECO "B27"]
[WhiteElo "1772"]
[BlackElo "1869"]
[Annotator "NA"]
[PlyCount "32"]
[EventDate "2024.07.03"]
[EventType "swiss"]
[EventCountry "SUI"]
[SourceTitle "playchess.com"]
[Source "ChessBase"]
[SourceQuality "1"]
[TimeControl "40/5400+30:1800+30"]

1. e4 {[%emt 0:00:10]} g6 {[%emt 0:03:47]} 2. d4 {[%emt 0:00:08]} Bg7 {[%emt 0:00:04]} 3. Nc3 {[%emt 0:00:27]} c5 {[%emt 0:00:21]} 4. Be3 {[%emt 0:01:23]} Qa5 {[%emt 0:06:43]} 5. Nf3 {[%emt 0:05:48]} Nf6 {[%emt 0:01:15]} 6. Qd2 {[%emt 0:05:43]} cxd4 {[%emt 0:05:15]} 7. Bxd4 {[%emt 0:15:37]} Nc6 {[%emt 0:02:13]} 8. Bd3 {[%emt 0:01:04]} O-O {[%emt 0:01:53]} 9. h3 {[%emt 0:02:12]} Qb4 {[%emt 0:05:41]} 10. Ne2 {[%emt 0:05:19]} Qxd2+ {[%emt 0:01:28]} 11. Kxd2 {[%emt 0:00:12]} Nxd4 {[%emt 0:00:12]} 12. Nexd4 {[%emt 0:00:22]} b6 {[%emt 0:04:04]} 13. c3 {[%emt 0:00:23]} Rd8 {[%emt 0:08:08]} 14. Rae1 {[%emt 0:00:14]} Nh5 {[%emt 0:02:23]} 15. Rhg1 {[%emt 0:09:53]} e6 {[%emt 0:07:18]} 16. g3 {[%emt 0:05:09]} Bh6+ {[%emt 0:00:41]} 1/2-1/2

[Event "57th Biel Festival ATO 2024"]
[Site "Biel"]
[Date "2024.07.24"]
[Round "8.20"]
[White "Hansen, Michael Bo"]
[Black "Keymer, Cecilia"]
[Result "0-1"]
[ECO "D10"]
[WhiteElo "1759"]
[BlackElo "1865"]
[Annotator "NA RC"]
[PlyCount "60"]
[EventDate "2024.07.03"]
[EventType "swiss"]
[EventCountry "SUI"]
[SourceTitle "playchess.com"]
[Source "ChessBase"]
[SourceQuality "1"]
[TimeControl "40/5400+30:1800+30"]

1. d4 {[%emt 0:00:04]} d5 {[%emt 0:00:05]} 2. c4 {[%emt 0:00:09]} c6 {[%emt 0:00:05]} 3. cxd5 {[%emt 0:00:11]} cxd5 {[%emt 0:00:05]} 4. Bg5 {[%emt 0:00:14]} f6 {[%emt 0:00:19]} 5. Bd2 {[%emt 0:00:52]} Nc6 {[%emt 0:00:38]} 6. e3 {[%emt 0:00:44]} Bf5 {[%emt 0:02:58]} 7. Nc3 {[%emt 0:07:39]} e6 {[%emt 0:01:53]} 8. Nh3 {[%emt 0:05:36]} g5 {[%emt 0:05:20]} 9. g4 {[%emt 0:09:17]} Bg6 {[%emt 0:02:09]} 10. f4 {[%emt 0:01:59]} h6 {[%emt 0:11:52]} 11. Nf2 {[%emt 0:04:20]} gxf4 {[%emt 0:05:38]} 12. exf4 {[%emt 0:00:22]} Nxd4 {[%emt 0:03:00]} 13. Qa4+ {[%emt 0:04:06]} Nc6 {[%emt 0:00:56]} 14. Bb5 {[%emt 0:00:42]} Nge7 {[%emt 0:04:47]} 15. Ne2 {[%emt 0:01:57]} a6 {[%emt 0:03:51]} 16. Bxc6+ {[%emt 0:00:53]} Nxc6 {[%emt 0:00:31]} 17. Nd4 {[%emt 0:01:34]} Qd7 {[%emt 0:01:53]} 18. Rc1 {[%emt 0:04:32]} Nxd4 {[%emt 0:07:44]} 19. Qxd4 {[%emt 0:00:06]} Kf7 {[%emt 0:02:24]} 20. Bc3 {[%emt 0:04:20]} Bg7 {[%emt 0:06:16]} 21. g5 {[%emt 0:00:49]} hxg5 {[%emt 0:04:24]} 22. Ng4 {[%emt 0:03:50]} e5 {[%emt 0:06:12]} 23. fxe5 {[%emt 0:00:37]} Qe6 {[%emt 0:09:32]} 24. Nxf6 {[%emt 0:02:09]} Rh4 {[%emt 0:05:35]} 25. Qd2 {[%emt 0:00:15]} Bxf6 {[%emt 0:02:52]} 26. O-O {[%emt 0:00:02]} Rg4+ {[%emt 0:04:17]} 27. Kf2 {[%emt 0:01:08]} Rf4+ {[%emt 0:02:33]} 28. Qxf4 {[%emt 0:02:14]} gxf4 {[%emt 0:00:54]} 29. exf6 {[%emt 0:00:02]} Qe3+ {[%emt 0:01:17]} 30. Kg2 {[%emt 0:00:11]} Be4+ {[%emt 0:00:15]} 0-1

[Event "57th Biel Festival ATO 2024"]
[Site "Biel"]
[Date "2024.07.24"]
[Round "8.21"]
[White "Bracher, Juerg"]
[Black "Suwendo, Poedjo"]
[Result "1-0"]
[ECO "A45"]
[WhiteElo "1864"]
[BlackElo "1727"]
[Annotator "NA"]
[PlyCount "49"]
[EventDate "2024.07.03"]
[EventType "swiss"]
[EventCountry "SUI"]
[SourceTitle "playchess.com"]
[Source "ChessBase"]
[SourceQuality "1"]
[TimeControl "40/5400+30:1800+30"]

1. d4 {[%emt 0:00:03]} Nf6 {[%emt 0:01:24]} 2. Bf4 {[%emt 0:01:05]} d6 {[%emt 0:00:59]} 3. e3 {[%emt 0:00:39]} c6 {[%emt 0:00:32]} 4. h3 {[%emt 0:01:20]} Nbd7 {[%emt 0:00:15]} 5. Nf3 {[%emt 0:00:26]} Nd5 {[%emt 0:05:05]} 6. Bh2 {[%emt 0:01:24]} b5 {[%emt 0:04:54]} 7. Bd3 {[%emt 0:04:39]} g6 {[%emt 0:00:25]} 8. O-O {[%emt 0:01:36]} Bg7 {[%emt 0:00:13]} 9. c3 {[%emt 0:02:50]} Bb7 {[%emt 0:01:57]} 10. a4 {[%emt 0:05:07]} a6 {[%emt 0:00:48]} 11. Nbd2 {[%emt 0:03:11]} O-O {[%emt 0:01:22]} 12. Qe2 {[%emt 0:02:00]} bxa4 {[%emt 0:06:00]} 13. Rxa4 {[%emt 0:02:19]} a5 {[%emt 0:01:08]} 14. Rfa1 {[%emt 0:02:31]} f5 {[%emt 0:04:55]} 15. Ng5 {[%emt 0:07:01]} Rf6 {[%emt 0:13:44]} 16. e4 {[%emt 0:01:57]} h6 {[%emt 0:02:58]} 17. e5 {[%emt 0:07:09]} hxg5 {[%emt 0:04:21]} 18. exf6 {[%emt 0:00:23]} Bxf6 {[%emt 0:00:26]} 19. Qe6+ {[%emt 0:09:44]} Kg7 {[%emt 0:00:05]} 20. Nc4 {[%emt 0:06:40]} Nf8 {[%emt 0:00:28]} 21. Qe2 {[%emt 0:00:52]} Nb6 {[%emt 0:00:13]} 22. f3 {[%emt 0:05:29]} Ne6 {[%emt 0:07:26]} 23. Kh1 {[%emt 0:12:02]} Nxd4 {[%emt 0:08:34]} 24. Qxe7+ {[%emt 0:05:03]} Kh6 {[%emt 0:00:09]} 25. h4 {[%emt 0:12:18]} 1-0

[Event "57th Biel Festival ATO 2024"]
[Site "Biel"]
[Date "2024.07.24"]
[Round "8.22"]
[White "Kuenzi, Anton"]
[Black "Lang, Jochen"]
[Result "1-0"]
[ECO "A07"]
[WhiteElo "1862"]
[BlackElo "1755"]
[Annotator "NA RC"]
[PlyCount "57"]
[EventDate "2024.07.03"]
[EventType "swiss"]
[EventCountry "SUI"]
[SourceTitle "playchess.com"]
[Source "ChessBase"]
[SourceQuality "1"]
[TimeControl "40/5400+30:1800+30"]

1. Nf3 {[%emt 0:00:03]} d5 {[%emt 0:00:37]} 2. b3 {[%emt 0:00:09]} Nf6 {[%emt 0:00:43]} 3. Bb2 {[%emt 0:00:13]} Bf5 {[%emt 0:01:12]} 4. g3 {[%emt 0:00:21]} h6 {[%emt 0:01:55]} 5. Bg2 {[%emt 0:00:17]} e6 {[%emt 0:00:29]} 6. O-O {[%emt 0:00:28]} Nbd7 {[%emt 0:01:40]} 7. d3 {[%emt 0:03:09]} Be7 {[%emt 0:03:31]} 8. Nbd2 {[%emt 0:00:40]} c6 {[%emt 0:01:39]} 9. e4 {[%emt 0:05:13]} Bh7 {[%emt 0:00:57]} 10. e5 {[%emt 0:06:10]} Ng8 {[%emt 0:02:58]} 11. Bh3 {[%emt 0:12:30]} c5 {[%emt 0:03:19]} 12. d4 {[%emt 0:05:16]} b6 {[%emt 0:02:29]} 13. c4 {[%emt 0:01:12]} g5 {[%emt 0:10:42]} 14. cxd5 {[%emt 0:05:16]} f5 {[%emt 0:02:49]} 15. Nxg5 {[%emt 0:09:54]} hxg5 {[%emt 0:06:51]} 16. Qh5+ {[%emt 0:00:45]} Kf8 {[%emt 0:00:28]} 17. dxe6 {[%emt 0:00:15]} Qe8 {[%emt 0:00:27]} 18. Qxe8+ {[%emt 0:00:29]} Kxe8 {[%emt 0:00:16]} 19. exd7+ {[%emt 0:00:27]} Kxd7 {[%emt 0:00:16]} 20. d5 {[%emt 0:02:39]} Kc8 {[%emt 0:03:53]} 21. d6 {[%emt 0:00:29]} Bd8 {[%emt 0:00:25]} 22. Bg2 {[%emt 0:01:14]} Rb8 {[%emt 0:00:44]} 23. Bc6 {[%emt 0:07:42]} Bg6 {[%emt 0:01:19]} 24. e6 {[%emt 0:04:30]} Bf6 {[%emt 0:01:14]} 25. e7 {[%emt 0:00:11]} Bxb2 {[%emt 0:02:40]} 26. d7+ {[%emt 0:00:10]} Kc7 {[%emt 0:00:25]} 27. e8=Q {[%emt 0:00:17]} Bxe8 {[%emt 0:00:21]} 28. dxe8=Q {[%emt 0:00:14]} Rxe8 {[%emt 0:00:27]} 29. Bxe8 {[%emt 0:00:11]} 1-0

[Event "57th Biel Festival ATO 2024"]
[Site "Biel"]
[Date "2024.07.24"]
[Round "8.23"]
[White "Ernst, Heinz"]
[Black "Trubini, Timon"]
[Result "1-0"]
[ECO "E75"]
[WhiteElo "1830"]
[BlackElo "1714"]
[Annotator "NA RC"]
[PlyCount "59"]
[EventDate "2024.07.03"]
[EventType "swiss"]
[EventCountry "SUI"]
[SourceTitle "playchess.com"]
[Source "ChessBase"]
[SourceQuality "1"]
[TimeControl "40/5400+30:1800+30"]

1. d4 {[%emt 0:00:04]} Nf6 {[%emt 0:00:03]} 2. c4 {[%emt 0:00:18]} g6 {[%emt 0:00:02]} 3. Nc3 {[%emt 0:00:21]} Bg7 {[%emt 0:00:05]} 4. e4 {[%emt 0:00:22]} d6 {[%emt 0:00:05]} 5. Be2 {[%emt 0:01:12]} O-O {[%emt 0:00:04]} 6. Bg5 {[%emt 0:00:13]} c5 {[%emt 0:00:08]} 7. d5 {[%emt 0:00:24]} e6 {[%emt 0:00:05]} 8. h3 {[%emt 0:00:48]} Re8 {[%emt 0:00:57]} 9. Nf3 {[%emt 0:00:23]} exd5 {[%emt 0:00:14]} 10. exd5 {[%emt 0:00:37]} Qb6 {[%emt 0:00:27]} 11. Qd2 {[%emt 0:07:07]} Bf5 {[%emt 0:00:31]} 12. O-O {[%emt 0:05:24]} Ne4 {[%emt 0:03:24]} 13. Nxe4 {[%emt 0:00:44]} Bxe4 {[%emt 0:00:04]} 14. Rae1 {[%emt 0:03:05]} Nd7 {[%emt 0:03:38]} 15. b3 {[%emt 0:00:48]} Ne5 {[%emt 0:19:58]} 16. Nxe5 {[%emt 0:01:01]} Rxe5 {[%emt 0:00:08]} 17. Bf4 {[%emt 0:01:52]} Ree8 {[%emt 0:01:11]} 18. Bd3 {[%emt 0:01:36]} Bxd3 {[%emt 0:00:20]} 19. Qxd3 {[%emt 0:00:12]} Qc7 {[%emt 0:03:49]} 20. Re4 {[%emt 0:03:10]} Qd7 {[%emt 0:01:47]} 21. Rfe1 {[%emt 0:00:41]} Kf8 {[%emt 0:00:49]} 22. Qg3 {[%emt 0:10:49]} f5 {[%emt 0:24:26]} 23. Bxd6+ {[%emt 0:04:53]} Kg8 {[%emt 0:01:12]} 24. Rxe8+ {[%emt 0:01:51]} Rxe8 {[%emt 0:00:06]} 25. Rxe8+ {[%emt 0:00:15]} Qxe8 {[%emt 0:00:03]} 26. Qe3 {[%emt 0:00:16]} Qd8 {[%emt 0:05:39]} 27. Qe6+ {[%emt 0:03:22]} Kh8 {[%emt 0:00:12]} 28. Bxc5 {[%emt 0:00:37]} h6 {[%emt 0:00:56]} 29. b4 {[%emt 0:06:24]} Qg5 {[%emt 0:00:36]} 30. Qe2 {[%emt 0:03:33]} 1-0

[Event "57th Biel Festival ATO 2024"]
[Site "Biel"]
[Date "2024.07.24"]
[Round "8.24"]
[White "Bangerter, Ena"]
[Black "Nergard, Ole-Kristian"]
[Result "0-1"]
[ECO "A48"]
[WhiteElo "1771"]
[BlackElo "1830"]
[Annotator "NA"]
[PlyCount "110"]
[EventDate "2024.07.03"]
[EventType "swiss"]
[EventCountry "SUI"]
[SourceTitle "playchess.com"]
[Source "ChessBase"]
[SourceQuality "1"]
[TimeControl "40/5400+30:1800+30"]

1. d4 {[%emt 0:00:04]} Nf6 {[%emt 0:09:23]} 2. Nf3 {[%emt 0:00:09]} g6 {[%emt 0:00:10]} 3. Bf4 {[%emt 0:00:05]} Bg7 {[%emt 0:00:13]} 4. e3 {[%emt 0:00:10]} O-O {[%emt 0:00:12]} 5. h3 {[%emt 0:00:03]} d6 {[%emt 0:04:05]} 6. Be2 {[%emt 0:03:39]} b6 {[%emt 0:01:16]} 7. O-O {[%emt 0:00:43]} Bb7 {[%emt 0:00:08]} 8. Nbd2 {[%emt 0:00:32]} Nbd7 {[%emt 0:00:17]} 9. c3 {[%emt 0:05:32]} Re8 {[%emt 0:03:44]} 10. Nc4 {[%emt 0:05:24]} Ne4 {[%emt 0:01:24]} 11. a4 {[%emt 0:02:42]} a5 {[%emt 0:00:31]} 12. Bh2 {[%emt 0:12:03]} e5 {[%emt 0:00:05]} 13. Re1 {[%emt 0:02:31]} f5 {[%emt 0:11:42]} 14. Qb3 {[%emt 0:04:48]} Bd5 {[%emt 0:01:21]} 15. Rad1 {[%emt 0:08:53]} exd4 {[%emt 0:02:01]} 16. exd4 {[%emt 0:08:56]} Kh8 {[%emt 0:07:13]} 17. Qc2 {[%emt 0:05:51]} Ndf6 {[%emt 0:12:46]} 18. Bd3 {[%emt 0:11:24]} Qd7 {[%emt 0:01:30]} 19. Ne3 {[%emt 0:11:31]} Bc6 {[%emt 0:01:56]} 20. b3 {[%emt 0:00:06]} b5 {[%emt 0:09:33]} 21. axb5 {[%emt 0:04:57]} Bxb5 {[%emt 0:00:04]} 22. c4 {[%emt 0:01:23]} Bc6 {[%emt 0:02:06]} 23. d5 {[%emt 0:00:05]} Bb7 {[%emt 0:00:18]} 24. Nd2 {[%emt 0:01:20]} Nxd2 {[%emt 0:02:33]} 25. Rxd2 {[%emt 0:02:34]} Ne4 {[%emt 0:01:38]} 26. Bxe4 {[%emt 0:00:05]} Rxe4 {[%emt 0:00:05]} 27. Rb1 {[%emt 0:01:42]} Bd4 {[%emt 0:07:11]} 28. Nf1 {[%emt 0:03:37]} Rae8 {[%emt 0:01:36]} 29. Qa2 {[%emt 0:02:45]} Bc3 {[%emt 0:02:11]} 30. Rc2 {[%emt 0:00:02]} Bb4 {[%emt 0:00:19]} 31. Qa1+ {[%emt 0:00:56]} Qg7 {[%emt 0:00:32]} 32. Qxg7+ {[%emt 0:00:15]} Kxg7 {[%emt 0:00:03]} 33. f3 {[%emt 0:01:33]} Bc5+ {[%emt 0:01:41]} 34. Kh1 {[%emt 0:00:15]} Re1 {[%emt 0:01:01]} 35. Rcc1 {[%emt 0:00:03]} R1e2 {[%emt 0:02:24]} 36. Bg1 {[%emt 0:00:05]} Bb4 {[%emt 0:05:52]} 37. Bd4+ {[%emt 0:00:08]} Kf7 {[%emt 0:00:30]} 38. Bc3 {[%emt 0:00:14]} Bxc3 {[%emt 0:00:33]} 39. Rxc3 {[%emt 0:00:04]} Ra2 {[%emt 0:01:44]} 40. Re3 {[%emt 0:02:01]} Rxe3 {[%emt 0:03:51]} 41. Nxe3 {[%emt 0:30:05]} Kf6 {[%emt 0:32:36]} 42. Nd1 {[%emt 0:00:00]} Rc2 {[%emt 0:00:00]} 43. Kh2 {[%emt 0:00:00]} f4 {[%emt 0:00:00]} 44. Ra1 {[%emt 0:00:00]} c6 {[%emt 0:00:00]} 45. Rxa5 {[%emt 0:00:00]} cxd5 {[%emt 0:00:00]} 46. cxd5 {[%emt 0:00:00]} Ke5 {[%emt 0:00:00]} 47. b4 {[%emt 0:02:44]} Bxd5 {[%emt 0:00:00]} 48. h4 {[%emt 0:00:13]} Kd4 {[%emt 0:00:00]} 49. Kh3 {[%emt 0:00:36]} Rd2 {[%emt 0:00:00]} 50. Ra1 {[%emt 0:00:05]} Bb3 {[%emt 0:00:00]} 51. b5 {[%emt 0:00:18]} Bxd1 {[%emt 0:00:00]} 52. b6 {[%emt 0:00:51]} Bc2 {[%emt 0:00:00]} 53. g4 {[%emt 0:02:21]} Bd3 {[%emt 0:00:00]} 54. Ra4+ {[%emt 0:00:17]} Kc5 {[%emt 0:00:00]} 55. Rb4 {[%emt 0:00:25]} Bf1# {[%emt 0:00:00]} 0-1